[Event "FIDE WCCC Open-12 2024"]
[Site "Montesilvano"]
[Date "2024.11.18"]
[Round "3.1"]
[White "Golis, Wiktor"]
[Black "Stepanyan, Davit"]
[Result "1/2-1/2"]
[ECO "A32"]
[WhiteElo "2343"]
[BlackElo "2011"]
[PlyCount "79"]
[EventDate "2024.11.18"]
[EventType "swiss"]
[EventCountry "ITA"]
[TimeControl "5400+30"]

1. d4 {[%emt 0:00:09]} Nf6 {[%emt 0:00:12]} 2. Nf3 {[%emt 0:00:10]} e6 {[%emt 0:01:00]} 3. c4 {[%emt 0:00:35]} c5 {[%emt 0:00:11]} 4. g3 {[%emt 0:00:38]} cxd4 {[%emt 0:03:06]} 5. Nxd4 {[%emt 0:00:29]} Bb4+ {[%emt 0:02:12]} 6. Bd2 {[%emt 0:14:03]} Bxd2+ {[%emt 0:01:02]} 7. Qxd2 {[%emt 0:00:10]} Ne4 {[%emt 0:02:17]} 8. Qd3 {[%emt 0:06:09]} Qa5+ {[%emt 0:00:50]} 9. Nd2 {[%emt 0:02:11]} Qxd2+ {[%emt 0:01:27]} 10. Qxd2 {[%emt 0:00:05]} Nxd2 {[%emt 0:00:10]} 11. Kxd2 {[%emt 0:00:04]} Nc6 {[%emt 0:03:30]} 12. Nb5 {[%emt 0:03:01]} Ke7 {[%emt 0:00:48]} 13. Bg2 {[%emt 0:00:16]} a6 {[%emt 0:01:05]} 14. Nc3 {[%emt 0:00:09]} Rb8 {[%emt 0:04:29]} 15. c5 {[%emt 0:20:14]} b6 {[%emt 0:04:04]} 16. Bxc6 {[%emt 0:10:13]} dxc6 {[%emt 0:00:31]} 17. cxb6 {[%emt 0:00:18]} Rxb6 {[%emt 0:00:17]} 18. b3 {[%emt 0:00:37]} Rd8+ {[%emt 0:18:05]} 19. Ke3 {[%emt 0:03:53]} e5 {[%emt 0:10:27]} 20. Rhd1 {[%emt 0:05:11]} Rxd1 {[%emt 0:01:53]} 21. Rxd1 {[%emt 0:00:15]} Be6 {[%emt 0:00:29]} 22. Rc1 {[%emt 0:01:26]} Rb4 {[%emt 0:00:33]} 23. f3 {[%emt 0:01:48]} c5 {[%emt 0:03:22]} 24. f4 {[%emt 0:06:57]} exf4+ {[%emt 0:01:50]} 25. gxf4 {[%emt 0:00:02]} f5 {[%emt 0:00:33]} 26. Rd1 {[%emt 0:03:00]} Kf7 {[%emt 0:03:32]} 27. Rd6 {[%emt 0:11:36]} c4 {[%emt 0:01:01]} 28. Rd4 {[%emt 0:01:36]} h6 {[%emt 0:01:34]} 29. bxc4 {[%emt 0:03:29]} Rxc4 {[%emt 0:00:18]} 30. Rxc4 {[%emt 0:00:20]} Bxc4 {[%emt 0:00:05]} 31. Kd4 {[%emt 0:00:05]} Be6 {[%emt 0:00:46]} 32. Ke5 {[%emt 0:00:10]} g5 {[%emt 0:02:29]} 33. a3 {[%emt 0:00:16]} gxf4 {[%emt 0:03:38]} 34. Kxf4 {[%emt 0:00:09]} Kf6 {[%emt 0:00:39]} 35. e4 {[%emt 0:01:09]} fxe4 {[%emt 0:00:15]} 36. Nxe4+ {[%emt 0:00:06]} Kg6 {[%emt 0:00:24]} 37. Nc5 {[%emt 0:01:01]} Bc4 {[%emt 0:00:25]} 38. Ne4 {[%emt 0:01:05]} Be6 {[%emt 0:01:13]} 39. Nc5 {[%emt 0:00:07]} Bc4 {[%emt 0:00:06]} 40. Ne4 {[%emt 0:00:06]} 1/2-1/2

[Event "FIDE WCCC Open-12 2024"]
[Site "Montesilvano"]
[Date "2024.11.18"]
[Round "3.2"]
[White "Wijerathna, Vinuka Dihain"]
[Black "Lacan Rus, David"]
[Result "0-1"]
[ECO "B30"]
[WhiteElo "2004"]
[BlackElo "2274"]
[PlyCount "118"]
[EventDate "2024.11.18"]
[EventType "swiss"]
[EventCountry "ITA"]
[TimeControl "5400+30"]

1. e4 {[%emt 0:00:06]} c5 {[%emt 0:00:09]} 2. Nf3 {[%emt 0:00:13]} Nc6 {[%emt 0:00:06]} 3. Bb5 {[%emt 0:00:07]} e6 {[%emt 0:00:04]} 4. Nc3 {[%emt 0:01:27]} Nd4 {[%emt 0:00:09]} 5. Ba4 {[%emt 0:04:26]} a6 {[%emt 0:03:24]} 6. Nxd4 {[%emt 0:01:33]} cxd4 {[%emt 0:00:01]} 7. Ne2 {[%emt 0:00:30]} Nf6 {[%emt 0:05:07]} 8. d3 {[%emt 0:03:38]} Qa5+ {[%emt 0:09:09]} 9. c3 {[%emt 0:00:09]} dxc3 {[%emt 0:00:46]} 10. Nxc3 {[%emt 0:03:30]} Be7 {[%emt 0:04:59]} 11. O-O {[%emt 1:20:21]} O-O {[%emt 0:00:49]} 12. Bd2 {[%emt 0:00:00]} d6 {[%emt 0:14:11]} 13. Rc1 {[%emt 0:00:00]} Qd8 {[%emt 0:01:39]} 14. Qe2 {[%emt 0:00:00]} b5 {[%emt 0:01:17]} 15. Bb3 {[%emt 0:00:00]} Bb7 {[%emt 0:02:54]} 16. f4 {[%emt 0:00:00]} a5 {[%emt 0:07:39]} 17. Be3 {[%emt 0:00:00]} Bc6 {[%emt 0:10:01]} 18. Nb1 {[%emt 0:00:00]} Bd7 {[%emt 0:04:37]} 19. a3 {[%emt 0:00:00]} Qb8 {[%emt 0:01:46]} 20. Nd2 {[%emt 0:00:00]} a4 {[%emt 0:02:54]} 21. Ba2 {[%emt 0:00:00]} b4 {[%emt 0:00:09]} 22. Nc4 {[%emt 0:00:00]} Ra6 {[%emt 0:02:56]} 23. Bd4 {[%emt 0:00:00]} d5 {[%emt 0:07:19]} 24. exd5 {[%emt 0:00:00]} Nxd5 {[%emt 0:00:07]} 25. Ne5 {[%emt 0:00:00]} Qb7 {[%emt 0:01:35]} 26. Bc4 {[%emt 0:00:00]} Ra5 {[%emt 0:02:46]} 27. axb4 {[%emt 0:00:00]} Bxb4 {[%emt 0:00:49]} 28. Kh1 {[%emt 0:00:00]} Bd6 {[%emt 0:04:30]} 29. Qe1 {[%emt 0:00:00]} Raa8 {[%emt 0:02:46]} 30. Qg3 {[%emt 0:00:00]} Bxe5 {[%emt 0:04:00]} 31. Bxe5 {[%emt 0:00:00]} f6 {[%emt 0:00:03]} 32. Bd4 {[%emt 0:00:00]} Kh8 {[%emt 0:01:32]} 33. Rce1 {[%emt 0:00:41]} Rae8 {[%emt 0:01:10]} 34. Rf2 {[%emt 0:01:41]} Bc6 {[%emt 0:01:18]} 35. Rfe2 {[%emt 0:02:16]} Qf7 {[%emt 0:01:36]} 36. Bc5 {[%emt 0:00:39]} Rg8 {[%emt 0:00:08]} 37. f5 {[%emt 0:02:38]} exf5 {[%emt 0:02:00]} 38. Re7 {[%emt 0:00:39]} Rxe7 {[%emt 0:00:43]} 39. Rxe7 {[%emt 0:00:09]} Qh5 {[%emt 0:00:10]} 40. Bxd5 {[%emt 0:00:24]} Bxd5 {[%emt 0:00:32]} 41. Bd4 {[%emt 0:01:51]} Qd1+ {[%emt 0:00:27]} 42. Re1 {[%emt 0:00:05]} Qc2 {[%emt 0:00:23]} 43. Kg1 {[%emt 0:00:30]} f4 {[%emt 0:01:59]} 44. Qf2 {[%emt 0:00:01]} Qxd3 {[%emt 0:00:15]} 45. Qxf4 {[%emt 0:00:02]} Rf8 {[%emt 0:01:05]} 46. Bc5 {[%emt 0:01:20]} Qc2 {[%emt 0:00:57]} 47. Qf2 {[%emt 0:00:09]} Qxf2+ {[%emt 0:00:11]} 48. Bxf2 {[%emt 0:00:47]} Rc8 {[%emt 0:00:16]} 49. g3 {[%emt 0:01:50]} h6 {[%emt 0:00:27]} 50. Rd1 {[%emt 0:00:31]} Bf3 {[%emt 0:00:20]} 51. Ra1 {[%emt 0:01:13]} Rc2 {[%emt 0:00:19]} 52. Kf1 {[%emt 0:00:47]} Bc6 {[%emt 0:01:03]} 53. Rb1 {[%emt 0:00:52]} Kh7 {[%emt 0:00:14]} 54. h4 {[%emt 0:00:44]} Kg6 {[%emt 0:00:34]} 55. Be3 {[%emt 0:00:31]} Kf5 {[%emt 0:00:23]} 56. Rc1 {[%emt 0:00:54]} Bb5+ {[%emt 0:00:11]} 57. Kg1 {[%emt 0:00:30]} Rxb2 {[%emt 0:00:03]} 58. Bd4 {[%emt 0:00:20]} Rb3 {[%emt 0:00:31]} 59. Rc7 {[%emt 0:00:40]} Ke4 {[%emt 0:00:58]} 0-1

[Event "FIDE WCCC Open-12 2024"]
[Site "Montesilvano"]
[Date "2024.11.18"]
[Round "3.3"]
[White "Antipov, Fedor"]
[Black "Negrean, Andrei"]
[Result "1/2-1/2"]
[ECO "B90"]
[WhiteElo "1991"]
[BlackElo "2255"]
[PlyCount "144"]
[EventDate "2024.11.18"]
[EventType "swiss"]
[EventCountry "ITA"]
[TimeControl "5400+30"]

1. e4 {[%emt 0:00:03]} c5 {[%emt 0:00:10]} 2. Nf3 {[%emt 0:00:06]} d6 {[%emt 0:00:21]} 3. d4 {[%emt 0:00:07]} Nf6 {[%emt 0:00:11]} 4. Nc3 {[%emt 0:00:13]} cxd4 {[%emt 0:00:12]} 5. Nxd4 {[%emt 0:00:09]} a6 {[%emt 0:00:25]} 6. Be3 {[%emt 0:00:11]} e5 {[%emt 0:00:27]} 7. Nb3 {[%emt 0:00:08]} Be6 {[%emt 0:00:44]} 8. f3 {[%emt 0:00:09]} h5 {[%emt 0:00:40]} 9. Qd2 {[%emt 0:01:36]} Be7 {[%emt 0:00:42]} 10. Nd5 {[%emt 0:01:30]} Nxd5 {[%emt 0:01:19]} 11. exd5 {[%emt 0:00:21]} Bf5 {[%emt 0:00:22]} 12. Be2 {[%emt 0:00:55]} Bh4+ {[%emt 0:01:39]} 13. g3 {[%emt 0:01:07]} Be7 {[%emt 0:00:29]} 14. O-O-O {[%emt 0:02:39]} a5 {[%emt 0:01:10]} 15. Bd3 {[%emt 0:03:11]} Bd7 {[%emt 0:02:19]} 16. Qe2 {[%emt 0:02:01]} a4 {[%emt 0:08:19]} 17. Nd2 {[%emt 0:00:28]} a3 {[%emt 0:03:07]} 18. b3 {[%emt 0:03:25]} Na6 {[%emt 0:05:02]} 19. c4 {[%emt 0:31:19]} Nb4 {[%emt 0:06:41]} 20. Ne4 {[%emt 0:11:25]} Qa5 {[%emt 0:16:24]} 21. Kb1 {[%emt 0:11:09]} O-O {[%emt 0:13:43]} 22. Bd2 {[%emt 0:07:17]} f5 {[%emt 0:05:05]} 23. Nf2 {[%emt 0:05:30]} Qb6 {[%emt 0:03:53]} 24. Be3 {[%emt 0:04:42]} Qc7 {[%emt 0:03:01]} 25. c5 {[%emt 0:06:16]} dxc5 {[%emt 0:13:26]} 26. d6 {[%emt 0:00:21]} Bxd6 {[%emt 0:00:04]} 27. Bc4+ {[%emt 0:00:12]} Kh8 {[%emt 0:00:58]} 28. f4 {[%emt 0:04:13]} Be8 {[%emt 0:00:34]} 29. Nh3 {[%emt 0:00:48]} Bg6 {[%emt 0:05:40]} 30. Ng5 {[%emt 0:00:58]} Rae8 {[%emt 0:03:40]} 31. Ne6 {[%emt 0:01:35]} Rxe6 {[%emt 0:01:36]} 32. Bxe6 {[%emt 0:00:02]} Re8 {[%emt 0:00:32]} 33. Bc4 {[%emt 0:00:45]} exf4 {[%emt 0:00:06]} 34. gxf4 {[%emt 0:00:55]} Bxf4 {[%emt 0:01:08]} 35. Qg2 {[%emt 0:00:41]} Bh7 {[%emt 0:00:27]} 36. Bxf4 {[%emt 0:00:39]} Qxf4 {[%emt 0:00:01]} 37. Rhe1 {[%emt 0:00:47]} Qb8 {[%emt 0:00:25]} 38. Bb5 {[%emt 0:01:03]} Rg8 {[%emt 0:01:51]} 39. Bc4 {[%emt 0:00:29]} f4+ {[%emt 0:00:59]} 40. Kc1 {[%emt 0:00:08]} f3 {[%emt 0:00:26]} 41. Qd2 {[%emt 0:00:51]} Qf8 {[%emt 0:01:25]} 42. Bxg8 {[%emt 0:00:33]} Nd3+ {[%emt 0:01:03]} 43. Kb1 {[%emt 0:00:31]} Qxg8 {[%emt 0:00:16]} 44. Ka1 {[%emt 0:00:24]} Qf8 {[%emt 0:00:52]} 45. Re6 {[%emt 0:00:29]} f2 {[%emt 0:00:31]} 46. Qe2 {[%emt 0:00:23]} Qf5 {[%emt 0:00:26]} 47. Re8+ {[%emt 0:00:26]} Bg8 {[%emt 0:00:01]} 48. Rf1 {[%emt 0:00:47]} Qf6+ {[%emt 0:01:03]} 49. Kb1 {[%emt 0:00:13]} Qg6 {[%emt 0:00:17]} 50. Ka1 {[%emt 0:00:40]} Nf4 {[%emt 0:00:42]} 51. Qxf2 {[%emt 0:00:39]} Qxe8 {[%emt 0:00:12]} 52. Qxf4 {[%emt 0:00:15]} Qe2 {[%emt 0:00:04]} 53. Rb1 {[%emt 0:00:28]} b5 {[%emt 0:00:58]} 54. Qf5 {[%emt 0:00:45]} c4 {[%emt 0:00:43]} 55. Qxb5 {[%emt 0:00:24]} Qf3 {[%emt 0:00:17]} 56. Qe5 {[%emt 0:00:29]} cxb3 {[%emt 0:00:48]} 57. axb3 {[%emt 0:00:26]} Bf7 {[%emt 0:00:26]} 58. Rg1 {[%emt 0:00:26]} Bg6 {[%emt 0:00:29]} 59. Rxg6 {[%emt 0:00:34]} Qd1+ {[%emt 0:00:01]} 60. Ka2 {[%emt 0:00:12]} Qc2+ {[%emt 0:00:02]} 61. Kxa3 {[%emt 0:00:22]} Qxg6 {[%emt 0:00:01]} 62. b4 {[%emt 0:00:55]} Qa6+ {[%emt 0:00:42]} 63. Kb3 {[%emt 0:00:26]} Qd3+ {[%emt 0:00:08]} 64. Ka4 {[%emt 0:00:24]} Qa6+ {[%emt 0:00:20]} 65. Kb3 {[%emt 0:00:46]} Qd3+ {[%emt 0:02:55]} 66. Ka4 {[%emt 0:01:09]} Qa6+ 67. Qa5 {[%emt 0:00:30]} Qc6+ 68. b5 {[%emt 0:00:30]} Qc2+ {[%emt 0:01:30]} 69. Kb4 Qd2+ {[%emt 0:00:30]} 70. Ka4 Qc2+ 71. Ka3 {[%emt 0:01:30]} Qd3+ {[%emt 0:01:00]} 72. Ka4 {[%emt 0:00:30]} Qc2+ {[%emt 0:00:30]} 1/2-1/2

[Event "FIDE WCCC Open-12 2024"]
[Site "Montesilvano"]
[Date "2024.11.18"]
[Round "3.4"]
[White "Platonovs, Nikolajs"]
[Black "Radzimski, Antoni"]
[Result "1/2-1/2"]
[ECO "C78"]
[WhiteElo "1969"]
[BlackElo "2188"]
[PlyCount "94"]
[EventDate "2024.11.18"]
[EventType "swiss"]
[EventCountry "ITA"]
[TimeControl "5400+30"]

1. e4 {[%emt 0:00:01]} e5 {[%emt 0:00:28]} 2. Nf3 {[%emt 0:00:03]} Nc6 {[%emt 0:00:08]} 3. Bb5 {[%emt 0:00:06]} a6 {[%emt 0:00:04]} 4. Ba4 {[%emt 0:00:02]} Nf6 {[%emt 0:00:35]} 5. O-O {[%emt 0:00:12]} b5 {[%emt 0:00:02]} 6. Bb3 {[%emt 0:00:07]} Bc5 {[%emt 0:00:03]} 7. d3 {[%emt 0:01:20]} d6 {[%emt 0:00:21]} 8. c3 {[%emt 0:00:10]} O-O {[%emt 0:00:07]} 9. a4 {[%emt 0:00:28]} Rb8 {[%emt 0:00:19]} 10. axb5 {[%emt 0:00:12]} axb5 {[%emt 0:00:18]} 11. Re1 {[%emt 0:02:14]} Bg4 {[%emt 0:06:02]} 12. h3 {[%emt 0:00:30]} Bh5 {[%emt 0:01:37]} 13. Nbd2 {[%emt 0:00:10]} Bb6 {[%emt 0:09:23]} 14. Nf1 {[%emt 0:02:12]} Re8 {[%emt 0:01:44]} 15. Ng3 {[%emt 0:00:15]} Bg6 {[%emt 0:00:04]} 16. Qe2 {[%emt 0:03:10]} Nh5 {[%emt 0:07:56]} 17. Nxh5 {[%emt 0:03:45]} Bxh5 {[%emt 0:01:21]} 18. g4 {[%emt 0:00:01]} Bg6 {[%emt 0:00:16]} 19. Bg5 {[%emt 0:00:32]} Qd7 {[%emt 0:01:23]} 20. Nh4 {[%emt 0:01:01]} Nd8 {[%emt 0:05:07]} 21. Nxg6 {[%emt 0:02:19]} hxg6 {[%emt 0:00:28]} 22. Qf3 {[%emt 0:01:15]} Ne6 {[%emt 0:01:59]} 23. Bd2 {[%emt 0:00:27]} Qe7 {[%emt 0:04:49]} 24. Kg2 {[%emt 0:02:13]} Qh4 {[%emt 0:04:58]} 25. Qg3 {[%emt 0:02:58]} Qxg3+ {[%emt 0:02:40]} 26. Kxg3 {[%emt 0:01:09]} Nc5 {[%emt 0:04:02]} 27. Bc2 {[%emt 0:02:26]} Kf8 {[%emt 0:01:08]} 28. f4 {[%emt 0:07:27]} f6 {[%emt 0:08:22]} 29. b4 {[%emt 0:06:59]} Ne6 {[%emt 0:01:35]} 30. f5 {[%emt 0:00:31]} gxf5 {[%emt 0:00:08]} 31. gxf5 {[%emt 0:00:16]} Nd8 {[%emt 0:01:07]} 32. Bb3 {[%emt 0:07:49]} c6 {[%emt 0:03:07]} 33. Be3 {[%emt 0:01:26]} Bxe3 {[%emt 0:00:48]} 34. Rxe3 {[%emt 0:00:06]} Re7 {[%emt 0:00:21]} 35. Ree1 {[%emt 0:00:30]} g6 {[%emt 0:05:43]} 36. Kg4 {[%emt 0:01:11]} g5 {[%emt 0:03:51]} 37. Rh1 {[%emt 0:03:16]} Rg7 {[%emt 0:01:39]} 38. Kf3 {[%emt 0:01:05]} Rh7 {[%emt 0:00:21]} 39. h4 {[%emt 0:02:13]} gxh4 {[%emt 0:00:29]} 40. Rhg1 {[%emt 0:01:43]} h3 {[%emt 0:04:31]} 41. Rg8+ {[%emt 0:00:32]} Ke7 {[%emt 0:00:06]} 42. Rag1 {[%emt 0:01:10]} Ra8 {[%emt 0:05:04]} 43. R1g7+ {[%emt 0:00:39]} Rxg7 {[%emt 0:00:16]} 44. Rxg7+ {[%emt 0:00:02]} Kf8 {[%emt 0:02:36]} 45. Rg8+ {[%emt 0:01:29]} Ke7 {[%emt 0:00:10]} 46. Rg7+ {[%emt 0:00:04]} Kf8 {[%emt 0:02:48]} 47. Rg8+ {[%emt 0:00:10]} Ke7 {[%emt 0:00:41]} 1/2-1/2

[Event "FIDE WCCC Open-12 2024"]
[Site "Montesilvano"]
[Date "2024.11.18"]
[Round "3.5"]
[White "Shilon Rahav, Eliran"]
[Black "Qu, Haoming"]
[Result "1-0"]
[ECO "B01"]
[WhiteElo "2150"]
[BlackElo "1969"]
[PlyCount "111"]
[EventDate "2024.11.18"]
[EventType "swiss"]
[EventCountry "ITA"]
[TimeControl "5400+30"]

1. e4 {[%emt 0:00:04]} d5 {[%emt 0:00:14]} 2. exd5 {[%emt 0:00:13]} Qxd5 {[%emt 0:00:06]} 3. Nc3 {[%emt 0:00:08]} Qd6 {[%emt 0:00:20]} 4. d4 {[%emt 0:00:27]} c6 {[%emt 0:00:39]} 5. Nf3 {[%emt 0:01:31]} Bf5 {[%emt 0:00:32]} 6. Nh4 {[%emt 0:01:34]} Bg6 {[%emt 0:01:16]} 7. Be3 {[%emt 0:02:31]} e6 {[%emt 0:02:40]} 8. Nxg6 {[%emt 0:03:16]} hxg6 {[%emt 0:01:27]} 9. h4 {[%emt 0:03:02]} Be7 {[%emt 0:07:43]} 10. g3 {[%emt 0:04:21]} Nf6 {[%emt 0:01:15]} 11. Qf3 {[%emt 0:01:16]} Nd5 {[%emt 0:03:45]} 12. Bd2 {[%emt 0:06:50]} Nxc3 {[%emt 0:01:37]} 13. Bxc3 {[%emt 0:00:39]} Qd5 {[%emt 0:01:01]} 14. Qxd5 {[%emt 0:02:27]} cxd5 {[%emt 0:03:08]} 15. Bb5+ {[%emt 0:09:59]} Nd7 {[%emt 0:02:19]} 16. a4 {[%emt 0:08:36]} a6 {[%emt 0:03:18]} 17. Bxd7+ {[%emt 0:04:03]} Kxd7 {[%emt 0:00:06]} 18. Ke2 {[%emt 0:00:20]} b6 {[%emt 0:09:22]} 19. Bd2 {[%emt 0:03:06]} Rac8 {[%emt 0:12:15]} 20. Kd3 {[%emt 0:02:04]} Rc6 {[%emt 0:03:08]} 21. b3 {[%emt 0:04:28]} Rhc8 {[%emt 0:02:14]} 22. Rhc1 {[%emt 0:02:45]} Bf6 {[%emt 0:01:58]} 23. f4 {[%emt 0:06:04]} Ke8 {[%emt 0:13:02]} 24. c3 {[%emt 0:01:24]} Be7 {[%emt 0:08:13]} 25. Rh1 {[%emt 0:13:22]} f5 {[%emt 0:04:10]} 26. Rhc1 {[%emt 0:05:17]} Bf6 {[%emt 0:01:25]} 27. Ra2 {[%emt 0:07:46]} Kd7 {[%emt 0:02:45]} 28. Be3 {[%emt 0:01:10]} Ke7 {[%emt 0:09:32]} 29. Rac2 {[%emt 0:01:27]} Kd7 {[%emt 0:00:41]} 30. c4 {[%emt 0:00:20]} Be7 {[%emt 0:00:45]} 31. Bd2 {[%emt 0:01:49]} Ba3 {[%emt 0:00:30]} 32. Rg1 {[%emt 0:00:52]} Be7 {[%emt 0:00:56]} 33. g4 {[%emt 0:00:25]} Bf6 {[%emt 0:00:33]} 34. Rcc1 {[%emt 0:02:03]} Rh8 {[%emt 0:01:48]} 35. g5 {[%emt 0:01:46]} Be7 {[%emt 0:03:17]} 36. cxd5 {[%emt 0:00:21]} Rxc1 {[%emt 0:00:00]} 37. dxe6+ Kxe6 {[%emt 0:00:00]} 38. Rxc1 {[%emt 0:00:25]} Kd5 {[%emt 0:00:00]} 39. Rc7 {[%emt 0:00:20]} Bd6 {[%emt 0:00:00]} 40. Rxg7 {[%emt 0:00:25]} Rxh4 {[%emt 0:00:00]} 41. Rxg6 {[%emt 0:00:16]} Rh3+ {[%emt 0:00:09]} 42. Kc2 {[%emt 0:00:01]} Rh2 {[%emt 0:00:12]} 43. Rh6 {[%emt 0:01:56]} Rg2 {[%emt 0:01:29]} 44. Kd3 {[%emt 0:00:13]} Rg3+ {[%emt 0:01:02]} 45. Ke2 {[%emt 0:00:02]} Rg2+ {[%emt 0:00:46]} 46. Ke1 {[%emt 0:00:11]} Rg1+ {[%emt 0:00:56]} 47. Kf2 {[%emt 0:00:06]} Rd1 {[%emt 0:00:05]} 48. Ke2 {[%emt 0:00:05]} Rg1 {[%emt 0:00:13]} 49. Rf6 {[%emt 0:00:10]} Bc7 {[%emt 0:00:42]} 50. Rxf5+ {[%emt 0:00:14]} Ke4 {[%emt 0:00:00]} 51. Rf7 {[%emt 0:00:57]} Bd6 {[%emt 0:01:00]} 52. Rf6 {[%emt 0:00:05]} Bc7 {[%emt 0:00:34]} 53. Re6+ {[%emt 0:00:18]} Kf5 {[%emt 0:01:15]} 54. Rc6 {[%emt 0:00:10]} Rg2+ {[%emt 0:00:06]} 55. Kf3 {[%emt 0:00:06]} Rxd2 {[%emt 0:00:17]} 56. Rf6# {[%emt 0:00:03]} 1-0

[Event "FIDE WCCC Open-12 2024"]
[Site "Montesilvano"]
[Date "2024.11.18"]
[Round "3.6"]
[White "Zhandos, Akarys"]
[Black "Golubovic, Erik"]
[Result "0-1"]
[ECO "B23"]
[WhiteElo "1932"]
[BlackElo "2147"]
[PlyCount "46"]
[EventDate "2024.11.18"]
[EventType "swiss"]
[EventCountry "ITA"]
[TimeControl "5400+30"]

1. e4 {[%emt 0:00:07]} c5 {[%emt 0:00:20]} 2. Nc3 {[%emt 0:00:11]} d6 {[%emt 0:00:21]} 3. d4 {[%emt 0:00:08]} cxd4 {[%emt 0:00:40]} 4. Qxd4 {[%emt 0:00:10]} Nc6 {[%emt 0:00:12]} 5. Qd2 {[%emt 0:00:09]} g6 {[%emt 0:01:03]} 6. b3 {[%emt 0:00:31]} Bh6 {[%emt 0:01:07]} 7. f4 {[%emt 0:00:22]} Nf6 {[%emt 0:00:51]} 8. Bb2 {[%emt 0:00:25]} O-O {[%emt 0:00:35]} 9. O-O-O {[%emt 0:00:53]} e5 {[%emt 0:01:16]} 10. g3 {[%emt 0:00:51]} Re8 {[%emt 0:01:12]} 11. Kb1 {[%emt 0:05:34]} Nd4 {[%emt 0:06:55]} 12. Nge2 {[%emt 0:06:32]} Bg4 {[%emt 0:00:47]} 13. Nxd4 {[%emt 0:02:34]} exd4 {[%emt 0:01:27]} 14. Qxd4 {[%emt 0:02:21]} Bg7 {[%emt 0:01:36]} 15. Ne2 {[%emt 0:33:40]} Rxe4 {[%emt 0:06:48]} 16. Qxd6 {[%emt 0:05:37]} Qe8 {[%emt 0:07:30]} 17. Nc1 {[%emt 0:12:05]} Bxd1 {[%emt 0:02:44]} 18. Qxd1 {[%emt 0:00:04]} Re1 {[%emt 0:01:12]} 19. Qf3 {[%emt 0:00:17]} Ne4 {[%emt 0:01:52]} 20. Qg2 {[%emt 0:00:11]} Bxb2 {[%emt 0:05:05]} 21. Kxb2 {[%emt 0:00:01]} Qe7 {[%emt 0:04:17]} 22. Kb1 {[%emt 0:01:13]} Qa3 {[%emt 0:00:43]} 23. Bd3 {[%emt 0:00:17]} Qxc1# {[%emt 0:00:13]} 0-1

[Event "FIDE WCCC Open-12 2024"]
[Site "Montesilvano"]
[Date "2024.11.18"]
[Round "3.7"]
[White "Luger, Sam"]
[Black "Sobirov, Afruzbek"]
[Result "1/2-1/2"]
[ECO "E16"]
[WhiteElo "2094"]
[BlackElo "1928"]
[PlyCount "177"]
[EventDate "2024.11.18"]
[EventType "swiss"]
[EventCountry "ITA"]
[TimeControl "5400+30"]

1. d4 {[%emt 0:00:18]} Nf6 {[%emt 0:00:10]} 2. c4 {[%emt 0:00:06]} e6 {[%emt 0:00:05]} 3. g3 {[%emt 0:00:04]} d5 {[%emt 0:00:04]} 4. Bg2 {[%emt 0:00:05]} Bb4+ {[%emt 0:00:09]} 5. Nd2 {[%emt 0:00:06]} O-O {[%emt 0:00:14]} 6. Ngf3 {[%emt 0:00:15]} b6 {[%emt 0:01:13]} 7. O-O {[%emt 0:00:23]} Bb7 {[%emt 0:00:41]} 8. Ne5 {[%emt 0:02:49]} Nbd7 {[%emt 0:02:01]} 9. cxd5 {[%emt 0:04:04]} exd5 {[%emt 0:13:22]} 10. Qa4 {[%emt 0:02:05]} Bd6 {[%emt 0:00:51]} 11. Nxd7 {[%emt 0:02:38]} Qxd7 {[%emt 0:04:28]} 12. Qxd7 {[%emt 0:00:45]} Nxd7 {[%emt 0:00:06]} 13. Nc4 {[%emt 0:00:31]} Be7 {[%emt 0:04:53]} 14. Bf4 {[%emt 0:01:51]} Bf6 {[%emt 0:04:53]} 15. Rfd1 {[%emt 0:37:21]} Ba6 {[%emt 0:05:39]} 16. Bxd5 {[%emt 0:28:20]} c6 {[%emt 0:01:58]} 17. Bxc6 {[%emt 0:00:20]} Bxc4 {[%emt 0:00:06]} 18. Bxd7 {[%emt 0:00:04]} Rad8 {[%emt 0:00:09]} 19. Bg4 {[%emt 0:01:27]} Rxd4 {[%emt 0:00:10]} 20. b3 {[%emt 0:01:48]} Rxf4 {[%emt 0:00:27]} 21. gxf4 {[%emt 0:00:07]} Bxa1 {[%emt 0:00:11]} 22. bxc4 {[%emt 0:06:42]} Bc3 {[%emt 0:02:58]} 23. Rd7 {[%emt 0:00:55]} a5 {[%emt 0:00:10]} 24. Bf3 {[%emt 0:03:59]} f5 {[%emt 0:02:01]} 25. Bd5+ {[%emt 0:00:30]} Kh8 {[%emt 0:00:08]} 26. e3 {[%emt 0:00:28]} Bb4 {[%emt 0:00:22]} 27. Kf1 {[%emt 0:00:09]} Bc5 {[%emt 0:00:10]} 28. Ke2 {[%emt 0:00:04]} g6 {[%emt 0:01:31]} 29. Rb7 {[%emt 0:01:08]} a4 {[%emt 0:00:59]} 30. Kd3 {[%emt 0:01:25]} a3 {[%emt 0:00:08]} 31. Kc3 {[%emt 0:00:23]} Re8 {[%emt 0:03:29]} 32. Kb3 {[%emt 0:00:35]} Re7 {[%emt 0:00:35]} 33. Rb8+ {[%emt 0:01:14]} Kg7 {[%emt 0:00:07]} 34. Kc2 {[%emt 0:01:30]} Ra7 {[%emt 0:00:27]} 35. Bc6 {[%emt 0:00:54]} Rc7 {[%emt 0:04:52]} 36. Bb5 {[%emt 0:01:00]} Re7 {[%emt 0:03:11]} 37. Rd8 {[%emt 0:00:04]} Re6 {[%emt 0:02:53]} 38. Rd5 {[%emt 0:00:11]} Kf6 {[%emt 0:04:59]} 39. Kd3 {[%emt 0:01:23]} Bb4 {[%emt 0:01:25]} 40. Ke2 {[%emt 0:00:54]} Bc5 {[%emt 0:00:07]} 41. Rd7 {[%emt 0:00:12]} Re7 {[%emt 0:00:58]} 42. Rd8 {[%emt 0:00:13]} Re6 {[%emt 0:00:16]} 43. Rc8 {[%emt 0:00:41]} Re7 {[%emt 0:06:24]} 44. Bc6 {[%emt 0:00:38]} Ra7 {[%emt 0:00:10]} 45. Kd3 {[%emt 0:00:23]} Bd6 {[%emt 0:01:08]} 46. Kc3 {[%emt 0:00:28]} Rc7 {[%emt 0:00:36]} 47. Rxc7 {[%emt 0:00:14]} Bxc7 {[%emt 0:00:04]} 48. Kd4 {[%emt 0:00:15]} Bd6 {[%emt 0:00:10]} 49. Bd5 {[%emt 0:00:58]} h6 {[%emt 0:02:21]} 50. Kd3 {[%emt 0:01:10]} g5 {[%emt 0:00:35]} 51. fxg5+ {[%emt 0:00:17]} hxg5 {[%emt 0:00:07]} 52. h3 {[%emt 0:00:23]} Ke5 {[%emt 0:00:16]} 53. Bc6 {[%emt 0:00:36]} Bc5 {[%emt 0:00:37]} 54. Bd7 {[%emt 0:01:11]} f4 {[%emt 0:01:16]} 55. Ke2 {[%emt 0:00:26]} fxe3 {[%emt 0:00:13]} 56. fxe3 {[%emt 0:00:03]} Be7 {[%emt 0:00:26]} 57. Kf3 {[%emt 0:00:20]} Kd6 {[%emt 0:00:20]} 58. Ba4 {[%emt 0:00:10]} Ke5 {[%emt 0:00:18]} 59. Bc2 {[%emt 0:00:11]} Bd8 {[%emt 0:00:08]} 60. Kg4 {[%emt 0:00:10]} Be7 {[%emt 0:00:23]} 61. Kh5 {[%emt 0:00:29]} Kf6 {[%emt 0:00:12]} 62. Kg4 {[%emt 0:00:17]} Ke5 {[%emt 0:00:07]} 63. Kf3 {[%emt 0:00:25]} Bd8 {[%emt 0:00:10]} 64. Ke2 {[%emt 0:00:07]} Be7 {[%emt 0:00:08]} 65. Kd3 {[%emt 0:00:14]} Bb4 {[%emt 0:00:07]} 66. Bd1 {[%emt 0:00:03]} Bc5 {[%emt 0:00:06]} 67. Bf3 {[%emt 0:00:06]} Bb4 {[%emt 0:00:06]} 68. Bd5 {[%emt 0:00:09]} Bc5 {[%emt 0:00:07]} 69. Bg8 {[%emt 0:00:04]} Bb4 {[%emt 0:00:14]} 70. Ke2 {[%emt 0:00:17]} Bc5 {[%emt 0:00:14]} 71. Kf3 {[%emt 0:00:20]} Be7 {[%emt 0:00:09]} 72. Bh7 {[%emt 0:00:06]} Bc5 {[%emt 0:00:09]} 73. Bd3 {[%emt 0:00:11]} Be7 {[%emt 0:00:06]} 74. Kg4 {[%emt 0:00:28]} Bd8 {[%emt 0:00:10]} 75. Kh5 {[%emt 0:00:14]} Kf6 {[%emt 0:00:07]} 76. Bc2 {[%emt 0:00:26]} Be7 {[%emt 0:00:08]} 77. Kg4 {[%emt 0:00:06]} Ke5 {[%emt 0:00:07]} 78. Bg6 {[%emt 0:00:16]} Bd8 {[%emt 0:00:07]} 79. Kh5 {[%emt 0:00:28]} Be7 {[%emt 0:00:16]} 80. Kh6 {[%emt 0:00:20]} Kf6 {[%emt 0:00:08]} 81. e4 {[%emt 0:00:40]} Bd6 {[%emt 0:00:22]} 82. Be8 {[%emt 0:00:12]} Be7 {[%emt 0:00:07]} 83. Kh5 {[%emt 0:00:13]} Bd6 {[%emt 0:00:14]} 84. Kg4 {[%emt 0:00:29]} Be7 {[%emt 0:00:12]} 85. Bd7 {[%emt 0:00:16]} Ke5 {[%emt 0:00:11]} 86. Bc6 {[%emt 0:00:16]} Bd8 {[%emt 0:00:20]} 87. Kf3 {[%emt 0:00:34]} Kd4 {[%emt 0:00:14]} 88. Bb5 {[%emt 0:02:46]} Be7 {[%emt 0:00:12]} 89. Ba4 {[%emt 0:00:22]} 1/2-1/2